bitfinex/quotes_SOLUSD_20241005
["timestamp","ask_amount","ask_price","bid_price","bid_amount"]
[1728116524507,6.9081,144.76,144.72,6.9098]
[1728116529438,17.2669,144.79,144.75,10.29938144]
[1728116529439,6.9069,144.79,144.75,10.29938144]
[1728116529611,6.9069,144.79,144.76,0.25098]
[1728116530219,1.08294337,144.81,144.76,0.25098]
[1728116530220,6.9064,144.8,144.76,0.25098]
[1728116530419,1.93469667,144.83,144.76,0.25098]
[1728116530614,6.9066,144.79,144.76,0.25098]
[1728116531912,6.9057,144.81,144.76,10.55036144]
[1728116532139,6.9057,144.81,144.77,1.38125841]
[1728116532325,0.8517533,144.83,144.79,10.29938144]
[1728116532529,6.9051,144.82,144.79,25.77788144]
[1728116532725,0.8517533,144.83,144.81,10.29938144]
[1728116532931,0.8517533,144.83,144.82,10.29938144]
[1728116533230,6.37745645,144.86,144.82,10.29938144]
[1728116533231,6.37745645,144.86,144.82,10.42487144]
[1728116533536,6.37745645,144.86,144.83,16.85928439]
[1728116533727,6.37745645,144.86,144.83,15.4785]
[1728116534116,6.37745645,144.86,144.84,0.12549]
[1728116534320,6.37745645,144.86,144.83,15.4785]
[1728116534518,6.37745645,144.86,144.84,10.42487144]
[1728116534916,6.37745645,144.86,144.85,0.12549]
[1728116535114,6.37745645,144.86,144.84,0.12549]
[1728116535420,6.37745645,144.86,144.83,25.77788144]
[1728116535813,6.37745645,144.86,144.84,1.38064616]
[1728116536337,6.37745645,144.86,144.84,0.25098]
[1728116537638,6.37745645,144.86,144.84,0.12549]
[1728116538628,6.37745645,144.86,144.85,10.55036144]
[1728116539328,6.37745645,144.86,144.85,41.23084544]
[1728116539717,6.37745645,144.86,144.85,17.45396144]
[1728116540231,17.2458,144.97,144.88,0.25098]
[1728116540422,6.9014,144.9,144.87,10.42487144]
[1728116540620,14.1472,144.97,144.87,11.80515677]
[1728116540822,14.1472,144.97,144.89,10.29938144]
[1728116541026,1.08294337,144.96,144.89,10.42487144]
[1728116541333,1.08294337,144.95,144.9,0.25098]
[1728116541831,6.9003,144.93,144.9,0.25098]
[1728116542232,1.08294337,144.95,144.89,10.29938144]
[1728116542433,20.0,144.96,144.9,0.25098]
[1728116542626,6.8998,144.94,144.9,0.25098]
[1728116542941,20.0,144.93,144.9,0.25098]
[1728116543522,6.9,144.93,144.9,0.25098]
[1728116544439,6.8994,144.94,144.9,0.25098]
[1728116545345,6.8994,144.94,144.92,0.25098]
[1728116545922,14.1472,144.97,144.9,0.25098]
[1728116545923,6.8998,144.93,144.9,0.25098]
[1728116546119,21.08294337,144.96,144.85,89.1456]
[1728116546347,6.9007,144.92,144.88,10.42487144]
[1728116546541,20.0,144.94,144.86,30.0]
[1728116546729,20.0,144.94,144.86,40.29938144]
[1728116547249,20.0,144.94,144.88,10.29938144]
[1728116547443,6.9008,144.91,144.88,10.29938144]
[1728116547747,6.9008,144.91,144.89,0.25098]
[1728116548230,6.9004,144.92,144.89,0.25098]
[1728116549834,6.9008,144.91,144.89,0.25098]
[1728116550045,6.9013,144.9,144.89,0.12549]
[1728116550432,6.9013,144.9,144.88,10.29938144]
[1728116550630,6.9009,144.91,144.89,0.25098]
[1728116551225,20.0,144.94,144.89,0.25098]
[1728116551226,21.08294337,144.94,144.89,0.25098]
[1728116551426,20.0,144.94,144.89,1.63106258]
[1728116552347,20.0,144.94,144.89,0.25098]
[1728116552529,6.9002,144.93,144.89,0.25098]
[1728116552731,6.9002,144.93,144.89,24.027864]
[1728116552933,6.8994,144.94,144.91,15.78198]
[1728116553838,6.8999,144.93,144.91,15.78198]
[1728116557249,6.8995,144.94,144.91,15.78198]
[1728116557725,21.77927371,144.97,144.91,15.78198]
[1728116557933,21.77927371,144.97,144.91,15.65649]
[1728116558749,20.69633034,144.97,144.91,15.65649]
[1728116559156,6.9003,144.92,144.91,15.65649]
[1728116559726,6.8999,144.93,144.91,15.65649]
[1728116560251,20.69633034,144.97,144.87,15.51]
[1728116560252,20.0,144.95,144.87,15.51]
[1728116560434,6.9022,144.88,144.87,15.51]
[1728116560751,6.9016,144.9,144.87,15.51]
[1728116560937,20.0,144.93,144.87,15.51]
[1728116561248,6.9018,144.89,144.87,15.51]
[1728116561946,20.0,144.93,144.87,15.51]
[1728116562171,6.9022,144.88,144.87,15.51]
[1728116563631,20.0,144.93,144.85,16.65518144]
[1728116563847,6.9027,144.87,144.84,25.71428144]
[1728116565158,6.9027,144.87,144.85,0.25098]
[1728116565639,6.9032,144.86,144.85,0.25098]
[1728116565840,20.0,144.94,144.84,15.4149]
[1728116565841,6.9036,144.85,144.84,15.4149]
[1728116566158,6.9036,144.85,144.81,16.34708144]
[1728116566538,17.254,144.9,144.81,16.34708144]
[1728116566744,6.9042,144.84,144.81,16.34708144]
[1728116567064,6.9042,144.84,144.81,6.0477]
[1728116567435,6.9042,144.84,144.8,25.71428144]
[1728116567638,6.9046,144.83,144.81,10.29938144]
[1728116569145,6.9046,144.83,144.81,11.68025729]
[1728116571246,6.9047,144.83,144.81,10.29938144]
[1728116571641,6.9047,144.83,144.81,11.68029051]
[1728116572062,6.9042,144.84,144.82,0.25098]
[1728116572860,17.2588,144.86,144.81,0.12549]
[1728116573166,6.9047,144.83,144.81,1.63188016]
[1728116573972,6.9047,144.83,144.81,0.25098]
[1728116575458,17.2588,144.86,144.81,0.25098]
[1728116575667,6.9042,144.84,144.81,0.25098]
[1728116578270,6.9037,144.85,144.81,35.70805359]
[1728116578450,6.9032,144.86,144.84,0.12549]
[1728116578651,6.9032,144.86,144.84,0.25098]
[1728116578866,6.9028,144.87,144.84,0.25098]
[1728116579061,6.9028,144.87,144.84,1.63159619]
[1728116580369,17.2513,144.92,144.84,1.63159619]
[1728116580671,6.9022,144.88,144.84,1.63159619]
[1728116581048,6.9018,144.89,144.85,10.29938144]
[1728116581383,6.9018,144.89,144.86,1.38038062]
[1728116581563,17.2513,144.92,144.86,1.38038062]
[1728116581564,6.9004,144.92,144.87,10.55036144]
[1728116581871,0.69633034,144.97,144.89,10.55036144]
[1728116581872,6.9,144.93,144.89,10.55036144]
[1728116582055,6.9003,144.92,144.9,1.38005396]
[1728116582255,0.69633034,144.97,144.91,0.25098]
[1728116582256,6.8999,144.93,144.91,0.25098]
[1728116582470,6.8999,144.93,144.89,10.55036144]
[1728116582864,6.9004,144.92,144.89,0.25098]
[1728116583050,6.8997,144.94,144.89,11.93039919]
[1728116583477,6.9,144.93,144.89,11.93039919]
[1728116584172,6.9,144.93,144.89,10.55036144]
[1728116586350,6.9004,144.92,144.89,10.55036144]
[1728116586564,6.9004,144.92,144.89,0.25098]
[1728116586757,1.08294337,144.92,144.86,26.10588144]
[1728116586967,1.08294337,144.92,144.86,15.8065]
[1728116587179,6.9021,144.89,144.86,15.8065]
[1728116587562,6.9024,144.88,144.86,15.8065]
[1728116587758,20.69633034,144.97,144.87,10.29938144]
[1728116587960,37.94193034,144.97,144.89,10.29938144]
[1728116588175,6.9006,144.92,144.89,10.29938144]
[1728116588377,37.94193034,144.97,144.86,39.4867]
[1728116588579,6.9009,144.91,144.87,10.29938144]
[1728116588760,6.9009,144.91,144.88,0.25098]
[1728116589466,6.9013,144.9,144.88,0.25098]
[1728116593682,6.9013,144.9,144.87,0.25098]
[1728116593879,6.9013,144.9,144.87,10.55036144]
[1728116598281,17.248,144.95,144.87,10.55036144]
[1728116598479,20.0,144.94,144.87,10.55036144]
[1728116598791,20.0,144.94,144.87,17.45286144]
[1728116598992,6.9004,144.92,144.87,17.45286144]
[1728116602271,26.8998,144.94,144.9,0.25098]
[1728116602590,26.8998,144.94,144.9,1.63088893]
[1728116603090,0.69633034,144.97,144.9,0.25098]
[1728116603271,6.9008,144.91,144.89,0.25098]
[1728116606579,1.08294337,144.95,144.89,0.12549]
[1728116606776,6.9017,144.9,144.86,39.4867]
[1728116607888,6.9017,144.9,144.87,0.25098]
[1728116608387,6.9017,144.9,144.86,39.4867]
[1728116608388,21.08294337,144.93,144.86,15.8065]
[1728116608590,6.9023,144.88,144.86,15.8065]
[1728116608972,6.9023,144.88,144.87,1.38032919]
[1728116609193,6.9018,144.89,144.86,17.18682285]
[1728116609680,6.9018,144.89,144.87,0.12549]
[1728116611273,6.9025,144.88,144.86,15.8065]
[1728116614093,6.9025,144.88,144.86,17.18692309]
[1728116614593,6.9025,144.88,144.86,17.18692189]
[1728116614973,20.0,144.93,144.87,0.25098]
[1728116614974,6.9018,144.89,144.87,0.25098]
[1728116616895,6.9018,144.89,144.87,1.63129083]
[1728116617687,6.9018,144.89,144.87,0.25098]
[1728116620505,6.9014,144.9,144.87,0.25098]
[1728116620697,6.9014,144.9,144.87,10.55036144]
[1728116630205,6.9014,144.9,144.87,0.25098]
[1728116631603,6.9014,144.9,144.87,1.63123915]
[1728116632408,6.9014,144.9,144.87,0.25098]
[1728116633408,1.08294337,144.92,144.87,0.25098]
[1728116633612,6.9021,144.89,144.87,0.25098]
[1728116634309,1.08294337,144.92,144.86,15.8065]
[1728116634515,6.9023,144.88,144.86,17.18691558]
[1728116635010,6.9018,144.89,144.86,17.18691558]
[1728116635695,6.9018,144.89,144.87,0.25098]
[1728116636206,6.9018,144.89,144.87,1.63128585]
[1728116639800,6.9018,144.89,144.87,0.25098]
[1728116641312,6.9018,144.89,144.86,15.8065]
[1728116641625,6.9024,144.88,144.86,0.25098]
[1728116641797,20.0,144.91,144.82,47.38050669]
[1728116642109,6.9027,144.87,144.82,64.58488813]
[1728116643610,6.9027,144.87,144.83,0.25098]
[1728116644696,6.9038,144.85,144.82,34.13968813]
[1728116644998,6.9038,144.85,144.82,23.84030669]
[1728116645715,6.9038,144.85,144.83,1.38075028]
[1728116646726,6.9038,144.85,144.82,23.84030669]
[1728116647022,6.9038,144.85,144.83,1.38074952]
[1728116648314,6.9038,144.85,144.83,1.38074757]
[1728116648515,20.0,144.89,144.83,1.38074757]
[1728116648705,6.9032,144.86,144.83,1.38074757]
[1728116648907,15.9454,144.91,144.85,10.29938144]
[1728116649219,6.9021,144.89,144.86,1.38043074]
[1728116650419,6.9013,144.9,144.87,0.12549]
[1728116650621,6.9013,144.9,144.88,1.38029876]
[1728116651519,6.9013,144.9,144.86,0.25098]
[1728116654519,20.0,144.92,144.86,0.25098]
[1728116654713,6.9018,144.89,144.86,0.25098]
[1728116655023,20.0,144.92,144.86,0.25098]
[1728116655196,6.9024,144.88,144.86,1.63139207]
[1728116655397,6.9024,144.88,144.86,1.63140425]
[1728116656535,6.9024,144.88,144.86,0.25098]
[1728116657225,6.9024,144.88,144.85,0.25098]
[1728116657422,21.08294337,144.92,144.85,0.25098]
[1728116657724,6.9032,144.86,144.82,41.04458813]
[1728116658431,6.9032,144.86,144.82,34.13968813]
[1728116658632,6.9037,144.85,144.82,7.21930669]
[1728116658818,6.9033,144.86,144.82,7.21930669]
[1728116659911,6.9033,144.86,144.83,0.25098]
[1728116660938,6.9037,144.85,144.83,0.25098]
[1728116661925,20.0,144.89,144.83,0.25098]
[1728116662132,6.9033,144.86,144.83,0.25098]
[1728116662328,6.9033,144.86,144.83,1.6316619]
[1728116663217,15.217,144.9,144.83,11.93104334]
[1728116663418,6.9026,144.88,144.83,18.83564334]
[1728116664731,6.9029,144.87,144.83,17.45496144]
[1728116665318,6.9029,144.87,144.83,10.55036144]
[1728116670661,6.9029,144.87,144.83,0.25098]
[1728116670953,6.9023,144.88,144.83,8.53610386]
[1728116671118,6.9023,144.88,144.83,7.15548]
[1728116671827,6.9028,144.87,144.83,7.15548]
[1728116672824,6.9028,144.87,144.83,0.25098]
[1728116673218,20.0,144.89,144.86,6.903]
[1728116673432,26.9021,144.89,144.85,1.38052772]
[1728116674038,6.9023,144.88,144.85,1.38052772]
[1728116674339,6.9023,144.88,144.84,27.55878144]
[1728116675031,6.9027,144.87,144.84,27.55878144]
[1728116675229,6.9022,144.88,144.85,1.38054035]
[1728116675628,6.9022,144.88,144.84,43.97898144]
[1728116676429,6.9022,144.88,144.85,1.38053848]
[1728116676618,6.9022,144.88,144.84,33.6796]
[1728116677021,6.9022,144.88,144.85,1.38053848]
[1728116677641,6.9022,144.88,144.84,33.6796]
[1728116679218,20.0,144.89,144.85,1.38053507]
[1728116679424,6.9018,144.89,144.85,1.38053507]
[1728116679625,6.9018,144.89,144.85,0.25098]
[1728116679821,6.9018,144.89,144.85,1.63142997]
[1728116680640,6.9024,144.88,144.85,0.25098]
[1728116681044,20.0,144.89,144.85,0.25098]
[1728116681253,1.08294337,144.94,144.85,0.25098]
[1728116681547,6.9018,144.89,144.85,7.15458]
[1728116682135,33.0882,144.95,144.86,1.38034853]
[1728116682730,6.9022,144.88,144.85,0.25098]
[1728116685246,6.9028,144.87,144.85,0.25098]
[1728116688454,6.9028,144.87,144.85,1.63149612]
[1728116688756,6.9028,144.87,144.85,0.25098]
[1728116689860,6.9028,144.87,144.84,16.4202]
[1728116690639,6.81155848,144.87,144.84,16.4202]
[1728116691162,6.81155848,144.87,144.85,1.38054242]
[1728116691341,6.81155848,144.87,144.84,16.4202]
[1728116691862,6.81155848,144.87,144.85,1.38054233]
[1728116692460,6.81155848,144.87,144.85,0.25098]
[1728116703670,6.81155848,144.87,144.85,1.63149656]
[1728116703866,6.9023,144.88,144.85,1.63149656]
[1728116704068,6.9017,144.9,144.85,1.63149656]
[1728116704268,6.9017,144.9,144.87,0.25098]
[1728116704465,6.9017,144.9,144.87,1.63127738]
[1728116704777,6.9004,144.92,144.88,6.9018]
[1728116705079,7.34073034,144.97,144.91,0.12549]
[1728116705383,6.8989,144.95,144.91,1.50535871]
[1728116706875,6.8997,144.94,144.9,0.12549]
[1728116707574,7.34073034,144.97,144.89,33.60969]
[1728116707575,20.0,144.96,144.89,33.60969]
[1728116707786,6.9001,144.93,144.89,33.60969]
[1728116708077,20.0,144.96,144.9,1.38007866]
[1728116708289,20.0,144.96,144.89,16.35549]
[1728116708862,20.0,144.96,144.9,0.25098]
[1728116710084,6.8999,144.93,144.9,0.25098]
[1728116711072,6.8999,144.93,144.9,1.63097241]
[1728116712595,6.8999,144.93,144.9,0.25098]
[1728116713990,0.69633034,144.97,144.92,0.25098]
[1728116714790,7.59463034,144.97,144.94,0.25098]
[1728116714997,7.59463034,144.97,144.94,1.63056118]
[1728116715171,0.69633034,144.97,144.94,0.25098]
[1728116715371,0.69633034,144.97,144.94,30.927264]
[1728116715665,0.69633034,144.97,144.94,7.15038]
[1728116716099,0.69633034,144.97,144.96,41.22564544]
[1728116716265,0.69633034,144.97,144.96,13.43228]
[1728116716466,0.69633034,144.97,144.96,62.93904544]
[1728116717381,0.69633034,144.97,144.96,64.31826993]
[1728116717589,0.69633034,144.97,144.96,62.93904544]
[1728116717772,0.69633034,144.97,144.96,45.741264]
[1728116718096,0.69633034,144.97,144.96,21.96438]
[1728116720500,0.69633034,144.97,144.96,54.0189655]
[1728116720701,0.69633034,144.97,144.96,52.639664]
[1728116720894,0.69633034,144.97,144.96,62.93904544]
[1728116721080,0.8517533,144.98,144.97,57.14888]
[1728116721393,67.995,145.0,144.99,30.924864]
[1728116721601,67.995,145.0,144.99,41.22424544]
[1728116722175,67.995,145.0,144.99,111.22424544]
[1728116722479,50.3284,145.0,144.99,156.25074544]
[1728116722875,50.203,145.0,144.99,156.25074544]
[1728116723194,33.411,145.0,144.99,162.80254544]
[1728116723379,16.7444,145.0,144.99,152.503164]
[1728116723579,16.7444,145.0,144.99,162.80254544]
[1728116724694,16.7444,145.0,144.99,102.503164]
[1728116724885,16.7444,145.0,144.99,162.80254544]
[1728116725085,16.7444,145.0,144.99,112.80254544]
[1728116725298,16.7444,145.0,144.99,92.80254544]
[1728116725501,16.7444,145.0,144.99,67.476664]
[1728116725681,16.7444,145.0,144.99,46.85118144]
[1728116725880,16.7444,145.0,144.99,48.23028408]
[1728116726095,16.7444,145.0,144.99,55.12728408]
[1728116727310,16.7444,145.0,144.99,79.15514808]
[1728116727484,16.7444,145.0,144.99,47.77604544]
[1728116729208,16.7444,145.0,144.99,49.15510641]
[1728116731312,16.7444,145.0,144.99,38.85572497]
[1728116731616,16.7444,145.0,144.99,37.476664]
[1728116731908,16.7444,145.0,144.99,67.476664]
[1728116732308,16.7444,145.0,144.99,117.476664]
[1728116732612,16.7444,145.0,144.99,67.476664]
[1728116733092,16.7444,145.0,144.99,68.85574336]
[1728116733291,16.7444,145.0,144.99,67.476664]
[1728116735783,16.7444,145.0,144.99,54.027864]
[1728116735983,16.7444,145.0,144.99,53.902374]
[1728116736288,16.7444,145.0,144.99,30.0]
[1728116737389,16.7444,145.0,144.98,30.0]
[1728116738198,16.7444,145.0,144.99,0.25098]
[1728116738394,16.7444,145.0,144.98,24.027864]
[1728116738596,16.7444,145.0,144.99,1.63015268]
[1728116741326,16.7444,145.0,144.99,0.25098]
[1728116741612,16.7444,145.0,144.95,24.1456]
[1728116741820,23.641,145.0,144.96,31.37927909]
[1728116741994,16.7444,145.0,144.96,38.27727909]
[1728116742200,16.7444,145.0,144.96,31.37927909]
[1728116742715,16.7444,145.0,144.96,1.37927909]
[1728116743018,16.7444,145.0,144.95,67.2468]
[1728116743218,16.7444,145.0,144.96,24.027864]
[1728116743412,16.7444,145.0,144.96,30.926164]
[1728116744700,23.6413,145.0,144.96,0.25098]
[1728116744901,6.897,144.99,144.96,30.12549]
[1728116745799,6.897,144.99,144.96,0.12549]
[1728116745997,23.641,145.0,144.96,1.50479047]
[1728116746215,23.641,145.0,144.97,0.12549]
[1728116747100,20.641,145.0,144.96,0.25098]
[1728116749214,20.641,145.0,144.96,24.027864]
[1728116750205,13.7444,145.0,144.97,6.8977]
[1728116750405,13.7444,145.0,144.96,30.926164]
[1728116750732,20.641,145.0,144.96,30.926164]
[1728116751033,20.641,145.0,144.96,24.027864]
[1728116752213,20.641,145.0,144.96,0.25098]
[1728116752414,13.7444,145.0,144.96,0.25098]
[1728116752607,6.897,144.99,144.96,0.25098]
[1728116752922,6.8975,144.98,144.96,0.25098]
[1728116753423,6.8971,144.99,144.96,0.25098]
[1728116759328,13.7444,145.0,144.96,0.25098]
[1728116759634,20.6409,145.0,144.96,0.25098]
[1728116760812,20.6409,145.0,144.96,24.027864]
[1728116764331,20.6409,145.0,144.96,7.14938]
[1728116765726,20.6409,145.0,144.96,0.25098]
[1728116765924,13.7444,145.0,144.98,0.25098]
[1728116766233,20.6411,145.0,144.98,0.25098]
[1728116767318,20.6411,145.0,144.93,6.8994]
[1728116767319,6.8975,144.98,144.93,6.8994]
[1728116767532,6.8985,144.96,144.92,32.55521229]
[1728116767717,6.8985,144.96,144.92,25.35132536]
[1728116768035,29.2005,145.0,144.92,25.35132536]
[1728116768234,6.8981,144.97,144.92,25.35132536]
[1728116768417,6.8981,144.97,144.92,24.1505]
[1728116769631,24.38834337,144.99,144.9,7.2037561]
[1728116769831,24.38834337,144.99,144.89,17.254]
[1728116769832,23.3054,144.99,144.91,36.9007]
[1728116770135,6.8984,144.96,144.92,1.37972939]
[1728116770324,6.8975,144.98,144.93,6.8997]
[1728116770522,6.897,144.99,144.94,6.8993]
[1728116770927,6.897,144.99,144.95,0.25098]
[1728116771818,36.0971,145.0,144.96,0.25098]
[1728116773142,13.7444,145.0,144.96,0.25098]
[1728116773313,13.7444,145.0,144.97,0.25098]
[1728116773509,20.6409,145.0,144.97,0.25098]
[1728116778039,13.7444,145.0,144.97,0.25098]
[1728116778225,13.7444,145.0,144.99,0.12549]
[1728116779237,13.7444,145.0,144.98,0.12549]
[1728116780529,13.7444,145.0,144.99,0.12549]
[1728116785237,13.7444,145.0,144.99,1.63015494]
[1728116785634,13.7444,145.0,144.99,8.52715767]
[1728116787828,13.7444,145.0,144.99,32.30404167]
[1728116788443,13.7444,145.0,144.99,30.924864]
[1728116793324,13.7444,145.0,144.99,60.924864]
[1728116793539,13.7444,145.0,144.99,110.924864]
[1728116795237,13.7444,145.0,144.99,130.924864]
[1728116795450,13.7444,145.0,144.99,137.504164]
[1728116802134,5.74729054,145.04,145.03,100.922964]
[1728116802340,5.74729054,145.04,145.03,102.30127444]
[1728116803343,5.74729054,145.04,145.03,130.922964]
[1728116804440,5.74729054,145.04,145.03,132.30141931]
[1728116805239,5.74729054,145.04,145.03,86.8951]
[1728116805438,5.74729054,145.04,145.03,38.27365687]
[1728116806465,5.74729054,145.04,145.03,88.27365687]
[1728116806669,5.74729054,145.04,145.03,132.30152087]
[1728116806870,5.74729054,145.04,145.03,130.922964]
[1728116807072,5.74729054,145.04,145.03,132.30137548]
[1728116807381,5.62189054,145.04,145.03,130.922964]
[1728116807565,5.62189054,145.04,145.03,132.30131312]
[1728116808178,5.62189054,145.04,145.03,130.922964]
[1728116808969,1.71769054,145.04,145.03,132.30136876]
[1728116809165,1.71769054,145.04,145.03,130.922964]
[1728116809373,1.71769054,145.04,145.03,132.30129676]
[1728116809555,1.71769054,145.04,145.03,138.86309676]
[1728116810469,1.71769054,145.04,145.03,137.484764]
[1728116811483,1.71769054,145.04,145.03,140.245545]
[1728116811677,0.39548746,145.05,145.04,50.922464]
[1728116811863,0.39548746,145.05,145.04,82.30041276]
[1728116812786,0.39548746,145.05,145.04,132.30041276]
[1728116813162,0.39548746,145.05,145.04,130.922464]
[1728116813787,0.27008746,145.05,145.04,130.922464]
[1728116814158,0.27008746,145.05,145.04,132.30044989]
[1728116814354,0.27008746,145.05,145.04,130.922464]
[1728116814772,0.27008746,145.05,145.04,80.922464]
[1728116814990,0.27008746,145.05,145.04,130.922464]
[1728116815481,0.27008746,145.05,145.04,132.30045171]
[1728116816064,0.27008746,145.05,145.04,130.922464]
[1728116816960,0.27008746,145.05,145.04,132.3005171]
[1728116818266,0.27008746,145.05,145.04,130.922464]
[1728116818985,0.27008746,145.05,145.04,142.079264]
[1728116820280,0.8517533,145.12,145.11,30.793674]
[1728116820466,0.8517533,145.12,145.11,30.919164]
[1728116821883,0.8517533,145.12,145.1,67.2289]
[1728116821884,15.5883,145.11,145.04,80.0]
[1728116822188,15.0883,145.11,145.06,30.0]
[1728116822367,6.8923,145.09,145.06,30.0]
[1728116822686,6.9007533,145.12,145.07,1.37857836]
[1728116822864,13.7915533,145.12,145.08,1.37844104]
[1728116823181,13.7915533,145.12,145.05,67.2342]
[1728116823182,13.7916533,145.12,145.05,67.2342]
[1728116823392,13.7916533,145.12,145.07,6.8931]
[1728116823684,13.7916533,145.12,145.08,1.37820875]
[1728116824270,6.9007533,145.12,145.08,8.27090875]
[1728116824904,6.9007533,145.12,145.08,6.8927]
[1728116825090,22.4890533,145.12,145.09,1.37817194]
[1728116826764,22.4890533,145.12,145.09,8.27027194]
[1728116827366,16.4400533,145.12,145.11,6.8913]
[1728116827585,0.8517533,145.12,145.1,17.2291]
[1728116829273,0.8517533,145.12,145.09,6.892]
[1728116829473,0.8517533,145.12,144.61,43.44751273]
[1728116829474,7.7425533,145.12,145.07,24.1257]
[1728116829686,0.8517533,145.12,145.08,8.27081307]
[1728116830788,0.8517533,145.12,145.08,6.8926]
[1728116831176,0.8517533,145.12,145.09,1.3782164]
[1728116831787,0.8517533,145.12,145.09,8.2704164]
[1728116831992,0.8517533,145.12,145.1,6.8917]
[1728116833079,0.8517533,145.12,145.1,8.26972177]
[1728116833274,0.8517533,145.12,145.09,17.2299]
[1728116833590,0.8517533,145.12,145.11,6.8913]
[1728116833778,15.5883,145.11,145.04,7.17956166]
[1728116833990,15.5883,145.11,145.07,6.8931]
[1728116834174,15.5883,145.11,145.08,1.37835299]
[1728116834575,15.5883,145.11,145.08,6.8927]
[1728116835290,15.5883,145.11,145.09,1.37822622]
[1728116835486,15.5883,145.11,145.08,6.8927]
[1728116837418,22.4796,145.11,145.06,24.127]
[1728116837573,22.4796,145.11,145.06,17.2338]
[1728116837894,22.4796,145.11,145.07,6.8931]
[1728116838095,15.1672,145.09,145.05,30.0]
[1728116838408,7.12574337,145.1,144.94,64.01831521]
[1728116838409,15.1672,145.07,144.97,17.2447]
[1728116838699,6.8951,145.03,145.0,30.0]
[1728116839201,15.1672,145.02,145.0,30.0]
[1728116839368,22.0628,145.02,145.0,30.0]
[1728116839574,7.97894337,145.01,145.0,30.0]
[1728116839771,6.896,145.01,145.0,30.0]
[1728116840003,15.1672,145.02,145.0,30.0]
[1728116840182,23.14584337,145.02,145.0,30.0]
[1728116840379,23.14584337,145.02,144.96,7.18255971]
[1728116840698,15.1672,145.02,144.96,7.18255971]
[1728116840904,15.1672,145.02,144.97,6.8975]
[1728116841782,23.14574337,145.02,144.96,24.42785971]
[1728116842987,23.14574337,145.02,144.97,6.8975]
[1728116842988,16.25014337,145.02,144.97,6.8975]
[1728116843295,16.25014337,145.02,144.96,24.42785971]
[1728116843507,1.08294337,145.01,144.96,24.42785971]
[1728116843727,1.08294337,145.01,144.96,31.32605971]
[1728116843930,22.0632,145.02,144.97,6.8978]
[1728116847218,6.8967,145.0,144.96,24.42785971]
[1728116847437,15.1672,145.02,144.96,31.32625971]
[1728116847438,7.97904337,145.01,144.96,31.32625971]
[1728116848617,1.08294337,145.01,144.97,6.8978]
[1728116849117,22.0628,145.02,144.97,6.8978]
[1728116850015,1.08294337,145.01,144.97,6.8978]
[1728116851129,15.1672,145.02,144.98,24.1401]
[1728116854907,16.25014337,145.02,144.98,24.1401]
[1728116856529,23.14574337,145.02,144.98,24.1401]
[1728116857734,23.14574337,145.02,144.98,17.2427]
[1728116860027,22.0628,145.02,144.98,17.2427]
[1728116860328,1.08294337,145.01,144.98,17.2427]
[1728116860538,22.0628,145.02,144.98,17.2427]
[1728116860924,22.0628,145.02,144.98,24.1401]
[1728116863018,1.08294337,145.01,144.98,24.1401]
[1728116863619,15.1672,145.02,144.98,24.1401]
[1728116864233,1.08294337,145.01,144.98,24.1401]
[1728116865239,15.1672,145.02,144.99,6.8968]
[1728116875449,15.1672,145.02,144.98,24.1401]
[1728116877032,22.0628,145.02,144.98,17.2427]
[1728116877238,1.08294337,145.01,144.98,17.2427]
[1728116878549,1.08294337,145.01,144.93,34.4978]
[1728116878550,6.8965,145.0,144.96,6.8983]
[1728116878755,1.08294337,144.99,144.96,6.8983]
[1728116878933,27.97904337,145.01,144.96,6.8983]
[1728116879331,21.08294337,145.01,144.93,1.20115001]
[1728116879529,21.08294337,145.01,144.93,8.10095001]
[1728116879846,6.8976,144.98,144.94,6.8992]
[1728116880044,1.08294337,144.97,144.94,6.8992]
[1728116880356,26.1386,144.99,144.91,1.20128206]
[1728116880538,26.1386,144.99,144.92,6.9002]